[Event "TUR-ch U13-18 Open 2023"]
[Site "Antalya"]
[Date "2023.01.23"]
[Round "3"]
[White "Ayhan, Ates Atabey"]
[Black "Kolat, Ata"]
[Result "0-1"]
[ECO "E08"]
[WhiteElo "1463"]
[BlackElo "1732"]
[Annotator "NA RC COMBH"]
[PlyCount "54"]
[EventDate "2023.01.17"]
[EventType "swiss"]
[EventCountry "TUR"]
[SourceTitle "playchess.com"]
[Source "ChessBase"]
[SourceQuality "1"]
[TimeControl "5400+30"]

1. d4 {[%emt 0:01:00]} Nf6 {[%emt 0:01:00]} 2. c4 {[%emt 0:00:30]} e6 {[%emt 0:00:30]} 3. Nf3 {[%emt 0:00:30]} b6 {[%emt 0:00:00]} 4. g3 {[%emt 0:00:00]} c6 {[%emt 0:00:00]} 5. Bg2 {[%emt 0:01:00]} d5 {[%emt 0:00:00]} 6. O-O {[%emt 0:02:30]} Be7 {[%emt 0:00:00]} 7. Qc2 {[%emt 0:04:30]} O-O {[%emt 0:01:30]} 8. Bf4 {[%emt 0:13:30]} Bb7 {[%emt 0:02:30]} 9. Nbd2 {[%emt 0:07:30]} Nbd7 {[%emt 0:04:30]} 10. Rfd1 {[%emt 0:12:30]} h6 {[%emt 0:03:30]} 11. Ne5 {[%emt 0:05:30]} Nxe5 {[%emt 0:03:30]} 12. Bxe5 {[%emt 0:02:30]} Rc8 {[%emt 0:01:30]} 13. e4 {[%emt 0:03:30]} dxe4 {[%emt 0:01:30]} 14. Nxe4 {[%emt 0:04:30]} Nxe4 {[%emt 0:00:30]} 15. Bxe4 {[%emt 0:05:30]} Bf6 {[%emt 0:02:30]} 16. Qa4 {[%emt 0:07:30]} a6 {[%emt 0:05:30]} 17. Qb3 {[%emt 0:04:30]} Ba8 {[%emt 0:05:30]} 18. Qa3 {[%emt 0:03:19]} a5 {[%emt 0:02:30]} 19. Qb3 {[%emt 0:02:34]} Be7 {[%emt 0:12:30]} 20. d5 {[%emt 0:05:40]} Bc5 {[%emt 0:02:30]} 21. d6 {[%emt 0:09:41]} Qd7 {[%emt 0:00:30]} 22. Bd4 {[%emt 0:01:07]} Bxd4 {[%emt 0:01:30]} 23. Rxd4 {[%emt 0:01:24]} c5 {[%emt 0:00:30]} 24. Rd2 {[%emt 0:01:12]} Bxe4 {[%emt 0:00:30]} 25. Qxb6 {[%emt 0:00:24]} e5 {[%emt 0:05:30]} 26. Re1 {[%emt 0:00:58]} Bf3 {[%emt 0:00:30]} 27. Rd3 {[%emt 0:00:08]} e4 {[%emt 0:01:30]} 0-1

[Event "TUR-ch U13-18 Open 2023"]
[Site "Antalya"]
[Date "2023.01.23"]
[Round "3"]
[White "Deniz, Yagiz Efe"]
[Black "Tezcan, Alper"]
[Result "0-1"]
[ECO "C01"]
[WhiteElo "1449"]
[BlackElo "1568"]
[Annotator "NA RC COMBH"]
[PlyCount "86"]
[EventDate "2023.01.17"]
[EventType "swiss"]
[EventCountry "TUR"]
[SourceTitle "playchess.com"]
[Source "ChessBase"]
[SourceQuality "1"]
[TimeControl "5400+30"]

1. e4 {[%emt 0:01:00]} e6 {[%emt 0:07:00]} 2. Nf3 {[%emt 0:16:30]} d5 {[%emt 0:00:30]} 3. exd5 {[%emt 0:00:30]} exd5 {[%emt 0:00:30]} 4. d4 {[%emt 0:00:30]} Bg4 {[%emt 0:00:30]} 5. Be2 {[%emt 0:00:30]} Bd6 {[%emt 0:00:30]} 6. h3 {[%emt 0:00:30]} Bh5 {[%emt 0:00:30]} 7. O-O {[%emt 0:00:30]} Ne7 {[%emt 0:00:30]} 8. Bg5 {[%emt 0:00:30]} f6 {[%emt 0:08:30]} 9. Be3 {[%emt 0:03:30]} O-O {[%emt 0:00:30]} 10. c4 {[%emt 0:00:30]} dxc4 {[%emt 0:00:30]} 11. Bxc4+ {[%emt 0:00:30]} Kh8 {[%emt 0:00:30]} 12. Nbd2 {[%emt 0:00:30]} Nd7 {[%emt 0:00:30]} 13. Qc2 {[%emt 0:00:30]} Bg6 {[%emt 0:00:30]} 14. Bd3 {[%emt 0:00:30]} Bxd3 {[%emt 0:00:30]} 15. Qxd3 {[%emt 0:00:30]} c6 {[%emt 0:00:30]} 16. Ne4 {[%emt 0:05:30]} Nc5 {[%emt 0:00:30]} 17. Nxc5 {[%emt 0:04:30]} Bxc5 {[%emt 0:07:30]} 18. Qb3 {[%emt 0:00:30]} Bb6 {[%emt 0:00:30]} 19. Rad1 {[%emt 0:00:30]} Nd5 {[%emt 0:00:30]} 20. Rfe1 {[%emt 0:00:30]} Qd7 {[%emt 0:00:30]} 21. Nd2 {[%emt 0:00:30]} Rfe8 {[%emt 0:00:30]} 22. Nb1 {[%emt 0:00:30]} Bc7 {[%emt 0:00:30]} 23. Nc3 {[%emt 0:00:30]} Nxe3 {[%emt 0:00:30]} 24. fxe3 {[%emt 0:00:30]} Qd6 {[%emt 0:00:30]} 25. Ne2 {[%emt 0:00:30]} Re7 {[%emt 0:00:30]} 26. Qd3 {[%emt 0:00:30]} Qh2+ {[%emt 0:00:30]} 27. Kf1 {[%emt 0:00:30]} Rae8 {[%emt 0:00:30]} 28. Ng1 {[%emt 0:00:30]} Re4 {[%emt 0:00:30]} 29. Nf3 {[%emt 0:00:30]} Qd6 {[%emt 0:00:30]} 30. Qd2 {[%emt 0:00:30]} Qd5 {[%emt 0:00:30]} 31. Qf2 {[%emt 0:00:30]} Ba5 {[%emt 0:00:30]} 32. Re2 {[%emt 0:00:30]} Qxa2 {[%emt 0:00:30]} 33. g4 {[%emt 0:00:30]} Qd5 {[%emt 0:00:30]} 34. b4 {[%emt 0:00:30]} Bxb4 {[%emt 0:00:30]} 35. Rb1 {[%emt 0:00:30]} a5 {[%emt 0:00:30]} 36. Nh4 {[%emt 0:00:30]} Rxd4 {[%emt 0:00:30]} 37. Ng2 {[%emt 0:00:30]} Rd1+ {[%emt 0:00:30]} 38. Rxd1 {[%emt 0:00:30]} Qxd1+ {[%emt 0:00:30]} 39. Ne1 {[%emt 0:00:30]} Rd8 {[%emt 0:00:30]} 40. Qg3 {[%emt 0:00:30]} Qd6 {[%emt 0:00:30]} 41. Qf2 {[%emt 0:00:30]} Qd5 {[%emt 0:00:30]} 42. Kg1 {[%emt 0:00:30]} a4 {[%emt 0:00:30]} 43. Qg3 {[%emt 0:00:30]} Qc4 {[%emt 0:00:30]} 0-1

[Event "TUR-ch U13-18 Open 2023"]
[Site "Antalya"]
[Date "2023.01.23"]
[Round "3"]
[White "Gokce, Furkan"]
[Black "Avsar, Gediz"]
[Result "0-1"]
[ECO "E13"]
[WhiteElo "1442"]
[BlackElo "1748"]
[Annotator "NA RC COMBH"]
[PlyCount "72"]
[EventDate "2023.01.17"]
[EventType "swiss"]
[EventCountry "TUR"]
[SourceTitle "playchess.com"]
[Source "ChessBase"]
[SourceQuality "1"]
[TimeControl "5400+30"]

1. d4 {[%emt 0:01:00]} Nf6 {[%emt 0:01:00]} 2. Nf3 {[%emt 0:00:30]} e6 {[%emt 0:00:30]} 3. c4 {[%emt 0:00:00]} b6 {[%emt 0:00:30]} 4. Nc3 {[%emt 0:00:00]} Bb4 {[%emt 0:00:30]} 5. Bg5 {[%emt 0:02:30]} Bb7 {[%emt 0:03:30]} 6. e3 {[%emt 0:01:30]} Bxc3+ {[%emt 0:03:30]} 7. bxc3 {[%emt 0:00:30]} h6 {[%emt 0:00:30]} 8. Bh4 {[%emt 0:00:30]} d6 {[%emt 0:01:30]} 9. Bd3 {[%emt 0:02:30]} Nbd7 {[%emt 0:01:30]} 10. O-O {[%emt 0:03:30]} O-O {[%emt 0:01:30]} 11. Re1 {[%emt 0:03:30]} c5 {[%emt 0:02:30]} 12. e4 {[%emt 0:02:30]} e5 {[%emt 0:03:30]} 13. d5 {[%emt 0:04:30]} Re8 {[%emt 0:02:30]} 14. Bc2 {[%emt 0:01:30]} g5 {[%emt 0:06:30]} 15. Bg3 {[%emt 0:03:30]} Nf8 {[%emt 0:00:30]} 16. h4 {[%emt 0:02:30]} g4 {[%emt 0:02:30]} 17. Nh2 {[%emt 0:00:30]} Bc8 {[%emt 0:02:30]} 18. Qd2 {[%emt 0:02:30]} Kh7 {[%emt 0:03:30]} 19. f4 {[%emt 0:03:30]} gxf3 {[%emt 0:00:00]} 20. Nxf3 {[%emt 0:02:30]} Ng6 {[%emt 0:03:00]} 21. Rf1 {[%emt 0:03:30]} Nh5 {[%emt 0:01:30]} 22. Bf2 {[%emt 0:04:30]} Ngf4 {[%emt 0:00:30]} 23. g3 {[%emt 0:00:30]} Rg8 {[%emt 0:03:30]} 24. Kh2 {[%emt 0:00:30]} Qd7 {[%emt 0:02:30]} 25. Ng1 {[%emt 0:03:30]} Nh3 {[%emt 0:07:30]} 26. Ba4 {[%emt 0:08:30]} Nxg1 {[%emt 0:04:30]} 27. Qxh6+ {[%emt 0:09:30]} Kxh6 {[%emt 0:00:30]} 28. Be3+ {[%emt 0:00:30]} Kg7 {[%emt 0:00:30]} 29. Bxd7 {[%emt 0:00:30]} Bxd7 {[%emt 0:00:30]} 30. Rxg1 {[%emt 0:00:00]} Nf6 {[%emt 0:00:30]} 31. Kg2 {[%emt 0:01:00]} Nxe4 {[%emt 0:00:30]} 32. h5 {[%emt 0:00:30]} Kh7 {[%emt 0:00:30]} 33. Kh2 {[%emt 0:04:30]} Nf6 {[%emt 0:02:30]} 34. Kg2 {[%emt 0:03:30]} Nxh5 {[%emt 0:01:30]} 35. Rh1 {[%emt 0:00:30]} Rxg3+ {[%emt 0:00:30]} 36. Kf2 {[%emt 0:00:30]} Rh3 {[%emt 0:00:30]} 0-1

[Event "TUR-ch U13-18 Open 2023"]
[Site "Antalya"]
[Date "2023.01.23"]
[Round "3"]
[White "Kutdemir, Mehmet"]
[Black "Hatirli, Ugur Can"]
[Result "0-1"]
[ECO "B26"]
[WhiteElo "1369"]
[BlackElo "1989"]
[Annotator "TA"]
[PlyCount "76"]
[EventDate "2023.01.17"]
[EventType "swiss"]
[EventCountry "TUR"]
[SourceTitle "playchess.com"]
[Source "ChessBase"]
[SourceQuality "1"]
[TimeControl "5400+30"]

{[%evp 18,76,30,21,31,0,0,0,2,-2,22,-18,-18,-60,-47,-60,-65,-58,-43,-59,-70,-81,-52,-52,-45,-50,-8,-25,-18,-31,-21,-46,-14,-45,-20,-60,-61,-60,-58,-62,-47,-58,-64,-148,-93,-156,-7,-8,0,0,86,43,50,54,46,43,286,301,403,0,114]} 1. e4 {[%emt 0:01:00]} c5 {[%emt 0:01:00]} 2. Nc3 {[%emt 0:00:30]} d6 {[%emt 0:00:30]} 3. g3 {[%emt 0:00:30]} Nc6 {[%emt 0:01:30]} 4. Bg2 {[%emt 0:01:30]} g6 {[%emt 0:00:30]} 5. d3 {[%emt 0:01:30]} Bg7 {[%emt 0:00:30]} 6. Be3 {[%emt 0:00:00]} Rb8 {[%emt 0:03:30]} 7. Qd2 {[%emt 0:03:00]} Nd4 {[%emt 0:03:30]} 8. Nd1 {[%emt 0:02:30]} e6 {[%emt 0:19:30]} 9. c3 {[%emt 0:06:30]} Nc6 {[%emt 0:00:30]} 10. Ne2 {[%emt 0:00:30]} h5 {[%emt 0:07:30] B26: Closed Sicilian: 3 g3, lines with early Be3.} 11. h4 {[%emt 0:03:30] [#]} b6 $146 {[%emt 0:02:30]} ({Predecessor:} 11... b5 12. O-O Nf6 13. Bg5 O-O 14. f4 Qb6 15. Kh1 Ng4 16. Ne3 Nxe3 17. Qxe3 f6 {1-0 Bommini,M (2029)-Krush,I (2429) Titled Tuesday intern op 26th May blitz 2020 (4)}) 12. O-O {[%emt 0:09:30]} Ba6 {[%emt 0:04:30]} 13. Re1 {[%emt 0:10:30]} Ne5 {[%emt 0:17:30]} 14. Nc1 {[%emt 0:05:30][%cal Be2c1,Bc1b3,Bb3d2,Bd2f1,Bf1e3][%mdl 32]} (14. d4 $5 {[%cal Rd4e5]} Nd3 15. Rf1 $11) 14... Ne7 {[%emt 0:03:30]} 15. f4 {[%emt 0:09:30]} Ng4 {[%emt 0:01:30]} 16. Nf2 {[%emt 0:01:30]} Nxe3 {[%emt 0:00:30]} 17. Qxe3 {[%emt 0:00:00]} d5 {[%emt 0:01:30]} 18. Nb3 {[%emt 0:03:00]} O-O {[%emt 0:01:30]} 19. Rad1 {[%emt 0:05:30]} Bb7 {[%emt 0:06:30]} 20. d4 {[%emt 0:02:30]} c4 {[%emt 0:01:30]} 21. Nd2 {[%emt 0:00:30]} dxe4 {[%emt 0:00:00]} 22. Nfxe4 {[%emt 0:00:30]} Nf5 {[%emt 0:01:00]} 23. Qe2 {[%emt 0:02:30]} b5 {[%emt 0:00:30][%cal Bb6b5,Bb5b4][%mdl 32]} 24. Nf1 {[%emt 0:01:30]} (24. Kh2 {keeps more tension.} Bd5 25. Nf3 a5 26. Ne5) 24... Qc7 {[%emt 0:04:40][%cal Ob5b4]} (24... b4 $5) 25. Kh2 {[%emt 0:01:30]} Rfd8 {[%emt 0:03:56][%cal Ob5b4]} 26. Qf2 {[%emt 0:03:30] [#]} b4 $1 {[%emt 0:05:01]} 27. Ne3 {[%emt 0:00:30]} (27. Nc5 Bxg2) 27... Bxe4 {[%emt 0:00:30]} 28. Bxe4 {[%emt 0:00:30]} Nd6 {[%emt 0:00:11]} 29. Bf3 {[%emt 0:02:30]} Qa5 {[%emt 0:00:44][%csl LRa2,LRc3]} 30. cxb4 {[%emt 0:01:30]} (30. Rc1 $1 $15) 30... Qxa2 {[%emt 0:01:58]} (30... Qxb4 31. Re2 $17) ({Black should try} 30... Rxb4 {White must now prevent ...Qb6.} 31. Re2 Qb6) 31. d5 {[%emt 0:01:30] [#]} ({Better is} 31. Re2) 31... Rxb4 {[%emt 0:01:13] Black is more active.} (31... Qxb2 32. Qxb2 Bxb2 33. dxe6 fxe6 34. g4 $17) (31... c3 $1 $17 {[%cal Rc3b2]} 32. Ra1 Qxb2) 32. dxe6 $11 {[%emt 0:01:30] Ng2 is the strong threat.} fxe6 {[%emt 0:01:05]} (32... Qxb2 $2 33. Re2 Qb3 34. e7 $18) 33. Ng2 {[%emt 0:00:30]} Nf7 {[%emt 0:05:00]} (33... Qxb2 34. Qxa7 Rb3 35. Qc7 $16) (33... Bxb2 $2 34. Rxe6 Qa4 35. Rxg6+ Bg7 36. Rdxd6 $18) (33... Rxb2 $11 {keeps the balance.} 34. Qc5 Qb3 35. Bxh5 gxh5 36. Rxd6 Rxd6 37. Qxd6 c3 38. Qd8+ Bf8 39. Qg5+ Bg7 40. Qd8+ Bf8 41. Qg5+ Bg7 42. Qd8+) 34. Qc2 {[%emt 0:00:30]} Rxd1 {[%emt 0:00:30]} (34... Qxb2 35. Rxd8+ Nxd8 36. Qxg6 $16) 35. Rxd1 {[%emt 0:00:30]} Qb3 {[%emt 0:00:30]} (35... Rxb2 $2 36. Qxg6 Rd2 37. Rxd2 Qxd2 38. Qxe6 $18 (38. Qxh5 c3 $16)) 36. Qe4 {[%emt 0:05:29] Hoping for Rd7.} c3 $2 {[%emt 0:01:39]} (36... Rb6 $14) 37. Qxg6 $18 {[%emt 0:00:48] Rd7 would be deadly.} c2 {[%emt 0:00:18]} 38. Bxh5 {[%emt 0:00:31]} (38. Rd7 $18 e5 39. Rc7 (39. Qxh5 $2 {too greedy.} c1=Q $19)) 38... Rb7 {[%emt 0:00:35][%mdl 32768] Weighted Error Value: White=0.38/Black=0.41. Loss on time!?} (38... cxd1=N {gets mated.} 39. Qxf7+ Kh8 40. Qe8+ Kh7 41. Bg6+ Kh6 42. Bb1) (38... cxd1=Q $11 {remains equal.} 39. Qxf7+ Kh8 40. Qe8+ Kh7 41. Qg6+ Kh8 42. Qe8+ Kh7 43. Qg6+ Kh8 44. Qe8+) 0-1

[Event "TUR-ch U13-18 Open 2023"]
[Site "Antalya"]
[Date "2023.01.24"]
[Round "4"]
[White "Taspinar, Yanki"]
[Black "Tutuncu, Ali"]
[Result "1/2-1/2"]
[ECO "D28"]
[WhiteElo "2275"]
[BlackElo "1728"]
[Annotator "TA"]
[PlyCount "52"]
[EventDate "2023.01.17"]
[EventType "swiss"]
[EventCountry "TUR"]
[SourceTitle "playchess.com"]
[Source "ChessBase"]
[SourceQuality "1"]
[TimeControl "5400+30"]

{[%evp 14,52,30,23,45,7,15,0,20,0,0,0,0,0,35,16,52,50,59,43,41,62,60,0,0,0,0,0,0,7,0,4,136,139,142,25,33,27,20,27,32]} 1. d4 {[%emt 0:07:00]} d5 {[%emt 0:01:00]} 2. c4 {[%emt 0:00:30]} dxc4 {[%emt 0:00:30]} 3. Nf3 {[%emt 0:00:30]} Nf6 {[%emt 0:00:00]} 4. e3 {[%emt 0:00:00]} e6 {[%emt 0:00:00]} 5. Bxc4 {[%emt 0:01:00]} a6 {[%emt 0:00:00]} 6. O-O {[%emt 0:00:30]} c5 {[%emt 0:00:00]} 7. Qe2 {[%emt 0:04:30]} Nc6 {[%emt 0:02:30]} 8. Rd1 {[%emt 0:01:30]} Qc7 {[%emt 0:00:30] D28: Queen's Gambit Accepted: Classical main line: 7 Qe2 with early ...Nc6.} 9. Bb3 {[%emt 0:01:30]} Be7 {[%emt 0:02:30]} 10. Nc3 {[%emt 0:02:30]} b5 {[%emt 0:03:30] The position is equal.} 11. Bd2 {[%emt 0:11:30]} O-O {[%emt 0:01:30]} 12. Rac1 {[%emt 0:00:30]} c4 {[%emt 0:04:30]} 13. Bc2 {[%emt 0:00:30] [#]} e5 $146 {[%emt 0:00:00]} ({Predecessor:} 13... Rd8 14. a4 Rb8 15. Ne4 e5 16. dxe5 Nxe4 17. Bxe4 Nxe5 18. axb5 axb5 {0-1 Yermolinsky,A (2615)-Wolff,P (2590) USA-ch Durango 1992 (13)}) 14. a4 {[%emt 0:12:30]} Rb8 {[%emt 0:12:00][%cal Ba8b8,Bb8b5,Bb5b6][%mdl 32]} 15. axb5 {[%emt 0:17:30]} axb5 {[%emt 0:00:00] [#]} 16. Nxb5 $1 {[%emt 0:02:30]} Rxb5 {[%emt 0:00:00]} 17. Qxc4 {[%emt 0:00:00]} Ba6 {[%emt 0:23:30] Strongly threatening ...Rb6.} 18. Ba4 {[%emt 0:00:00]} (18. dxe5 $1 $14 Rb6 19. Qa4) 18... Rb6 $11 {[%emt 0:00:30]} (18... Rxb2 $2 19. Qxa6 Rb6 20. Qc4 $18 (20. Rxc6 Qxc6 21. Bxc6 Rxa6 $14)) 19. Qc2 {[%emt 0:00:30] Hoping for Ba5.} e4 $1 {[%emt 0:00:00]} ({Much less strong is} 19... Be2 20. Ba5 Bxd1 21. Qxd1 $16) 20. Ne5 {[%emt 0:03:30] [#] Threatens to win with Ba5.} Bd3 $1 {[%emt 0:00:00]} 21. Nxd3 {[%emt 0:01:30]} exd3 {[%emt 0:00:30]} 22. Qc4 {[%emt 0:00:30][%cal Ra4c6]} Ne4 {[%emt 0:28:30]} 23. Bxc6 {[%emt 0:01:30]} Nxf2 {[%emt 0:00:30]} 24. Rf1 {[%emt 0:23:28] The board is on fire.} (24. Kxf2 $16 Qxh2 25. Kf3 (25. Qxd3 Rxc6 26. Qe4 Rf6+ 27. Ke2 Qh5+ 28. Kd3 Qb5+ 29. Kc2 Ba3 $19) 25... Qh5+ 26. g4 (26. Kf2 $2 Bh4+ 27. Kg1 Bg3 $19)) 24... Ng4 {[%emt 0:00:30][%csl Gg4][%cal Rc7h2]} 25. g3 {[%emt 0:00:30] Rf4 is the strong threat.} Bg5 {[%emt 0:00:30] Wards off Rf4} 26. Rf3 {[%emt 0:06:56] Black must now prevent b4.} Qd6 {[%emt 0:10:39] An interesting game.   Weighted Error Value: White=0.17 (very precise) /Black=0.17 (very precise)} 1/2-1/2

[Event "TUR-ch U13-18 Open 2023"]
[Site "Antalya"]
[Date "2023.01.24"]
[Round "4"]
[White "Ozen, Metehan"]
[Black "Caliskan, Seha"]
[Result "1/2-1/2"]
[ECO "C01"]
[WhiteElo "2137"]
[BlackElo "1954"]
[Annotator "TA"]
[PlyCount "37"]
[EventDate "2023.01.17"]
[EventType "swiss"]
[EventCountry "TUR"]
[SourceTitle "playchess.com"]
[Source "ChessBase"]
[SourceQuality "1"]
[TimeControl "5400+30"]

{[%evp 13,20,8,14,0,0,0,0,0,6]} 1. e4 {[%emt 0:01:00]} e6 {[%emt 0:01:00]} 2. d4 {[%emt 0:00:30]} d5 {[%emt 0:00:30]} 3. Nc3 {[%emt 0:00:30]} Bb4 {[%emt 0:00:00]} 4. exd5 {[%emt 0:03:30]} exd5 {[%emt 0:00:00]} 5. Bd3 {[%emt 0:00:30]} Nf6 {[%emt 0:01:30]} 6. Nge2 {[%emt 0:01:30]} c6 {[%emt 0:06:30]} 7. O-O {[%emt 0:07:30]} O-O {[%emt 0:02:30] The position is equal.} 8. h3 {[%emt 0:04:30] C01: French: Exchange Variation.} Nbd7 {[%emt 0:07:30]} 9. Ng3 {[%emt 0:10:30]} Re8 {[%emt 0:07:30]} 10. Qf3 {[%emt 0:09:30]} Nf8 {[%emt 0:11:30] [#] Not much happened in this game.   Weighted Error Value: White=0.04 (flawless) /Black=0.00 (flawless)} {Predecessor:} 11. Nce2 $146 Ng6 12. c3 Be7 13. Nf5 Bxf5 14. Qxf5 Nh4 15. Qf4 Ng6 16. Qf3 Nh4 17. Qf4 Ng6 18. Qf3 Nh4 19. Qf4 {½-½ Krzyzanowski,M (2535)-Sasikiran,K (2635) Prague Challengers 4th 2022 (7)} 1/2-1/2

[Event "TUR-ch U13-18 Open 2023"]
[Site "Antalya"]
[Date "2023.01.24"]
[Round "4"]
[White "Demirtas, Alper"]
[Black "Ersoz, Teoman Guney"]
[Result "1-0"]
[ECO "A05"]
[WhiteElo "1990"]
[BlackElo "1691"]
[Annotator "TA"]
[PlyCount "97"]
[EventDate "2023.01.17"]
[EventType "swiss"]
[EventCountry "TUR"]
[SourceTitle "playchess.com"]
[Source "ChessBase"]
[SourceQuality "1"]
[TimeControl "5400+30"]

{[%evp 11,97,10,15,17,21,28,41,56,83,88,86,60,76,63,101,111,108,63,53,74,143,51,132,138,156,151,196,199,254,247,410,407,502,302,314,306,297,313,320,319,309,313,303,255,258,251,264,264,249,227,318,312,412,405,422,437,432,387,380,362,634,593,633,627,606,585,676,647,1134,1054,1386,1599,1990,2006,3370,2810,5514,4552,29979,12091,29984,29985,29987,29988,29989,29990,29990,29991]} 1. Nf3 {[%emt 0:01:00]} Nf6 {[%emt 0:01:00]} 2. g3 {[%emt 0:00:30]} g6 {[%emt 0:00:30]} 3. b3 {[%emt 0:00:30]} Bg7 {[%emt 0:00:00]} 4. Bb2 {[%emt 0:00:00]} O-O {[%emt 0:00:00]} 5. Bg2 {[%emt 0:00:00]} d5 {[%emt 0:00:30]} 6. c4 {[%emt 0:00:00]} c5 {[%emt 0:00:30]} 7. cxd5 {[%emt 0:01:00] A05: Réti Opening: 1 Nf3 Nf6.} Qxd5 {[%emt 0:03:30]} 8. Nc3 {[%emt 0:01:30]} Qh5 {[%emt 0:04:30]} 9. h3 {[%emt 0:00:30] Black must now prevent g4. White is slightly better.} Nd5 {[%emt 0:10:30]} 10. g4 {[%emt 0:13:30]} Nxc3 {[%emt 0:03:30]} 11. dxc3 {[%emt 0:04:30]} Qh6 {[%emt 0:02:30] [#]} 12. Qd5 $146 {[%emt 0:06:30]} ({Predecessor:} 12. Qc2 Qf4 13. e3 Qc7 14. c4 Nc6 15. Bxg7 Kxg7 16. O-O-O a5 17. a4 Be6 18. Kb2 {0-1 Martin Duque,J (2424)-Fernandez Siles,L (2229) Titled Tuesday intern op 22 Mar Late blitz 2022 (1)}) 12... Qf4 {[%emt 0:03:30]} 13. Qxc5 {[%emt 0:01:30]} Nc6 {[%emt 0:00:30]} 14. Qe3 {[%emt 0:02:30] Prevents Qe4} Qxe3 {[%emt 0:03:30]} 15. fxe3 {[%emt 0:00:00]} Nb4 {[%emt 0:01:30] Black is now going downhill.} ({Black should play} 15... a5) 16. Kf2 {[%emt 0:02:00]} ({But not} 16. Nd4 $6 Bxd4 17. exd4 (17. cxd4 Nc2+ 18. Kf2 f5 $11) 17... Nc2+ 18. Kd2 Nxa1 $11) ({White should try} 16. O-O-O $16 Nxa2+ 17. Kc2) 16... Nd5 {[%emt 0:19:30]} (16... f5 $1 $14) 17. Nd4 $36 {[%emt 0:02:30][%mdl 2048] Black is under strong pressure.} e6 {[%emt 0:06:30]} 18. c4 {[%emt 0:02:30]} Nb6 {[%emt 0:02:30]} 19. Ba3 {[%emt 0:02:30]} Rd8 {[%emt 0:02:30]} (19... Re8 {was necessary.} 20. Rad1 a6) 20. Rad1 $18 {[%emt 0:00:30]} a6 $2 {[%emt 0:03:30]} (20... Bf8) 21. Nc6 {[%emt 0:04:30]} Rxd1 {[%emt 0:00:30]} 22. Rxd1 {[%emt 0:00:30]} Bf6 {[%emt 0:01:30]} 23. Ne7+ {[%emt 0:00:30]} Bxe7 {[%emt 0:00:30]} 24. Bxe7 {[%emt 0:00:30]} Nd7 {[%emt 0:00:30] [#]} 25. Bxb7 $1 {[%emt 0:00:30][%mdl 576] Deflection} Bxb7 {[%emt 0:00:30]} 26. Rxd7 {[%emt 0:00:00][%mdl 4096] Endgame KRB-KRB} Be4 {[%emt 0:00:30]} 27. b4 {[%emt 0:01:00]} h6 {[%emt 0:00:30]} 28. Kg3 {[%emt 0:00:30]} g5 {[%emt 0:00:30]} 29. h4 {[%emt 0:01:30]} gxh4+ {[%emt 0:00:30]} 30. Bxh4 {[%emt 0:00:30]} Kg7 {[%emt 0:01:30]} (30... Rc8 $142 31. c5 Kg7) 31. Kf4 {[%emt 0:00:30]} Bb1 {[%emt 0:00:00]} 32. a3 {[%emt 0:00:30]} Rc8 {[%emt 0:09:21]} 33. c5 {[%emt 0:01:30][%cal Bc4c5,Bc5c6,Bc6c7][%mdl 32]} Ba2 {[%emt 0:00:21]} 34. Rd2 {[%emt 0:00:30]} Bc4 {[%emt 0:00:18]} 35. Ke5 {[%emt 0:00:30]} Rc6 $2 {[%emt 0:00:30]} (35... Kg6 36. Be7 Bb5) 36. Rd6 {[%emt 0:01:30]} Rc8 {[%emt 0:00:30]} 37. Rb6 {[%emt 0:00:30]} Bxe2 {[%emt 0:00:30]} 38. c6 {[%emt 0:00:00]} Bf3 {[%emt 0:00:41]} 39. Kd6 {[%emt 0:00:00]} ({Weaker is} 39. Rxa6 Bxc6 40. a4 Bf3 $16) 39... Bxg4 {[%emt 0:00:30]} 40. c7 {[%emt 0:00:00]} f6 {[%emt 0:00:19]} 41. Rxa6 {[%emt 0:00:00]} e5 {[%emt 0:00:00]} 42. b5 {[%emt 0:00:30][%cal Bb4b5,Bb5b6,Bb6b7][%mdl 32]} Be2 {[%emt 0:00:00]} 43. a4 {[%emt 0:00:30] [#] aiming for Ra7.} f5 {[%emt 0:00:30]} 44. Rb6 {[%emt 0:00:30]} f4 {[%emt 0:00:30]} 45. exf4 {[%emt 0:00:00] Intending Rb8 and mate.} exf4 {[%emt 0:00:00]} 46. Rb8 {[%emt 0:00:00] White mates.} Bg4 {[%emt 0:00:00]} 47. b6 {[%emt 0:00:30]} f3 {[%emt 0:00:30]} 48. b7 {[%emt 0:00:30]} f2 {[%emt 0:00:30]} 49. Bxf2 {[%emt 0:00:00] Weighted Error Value: White=0.17 (very precise) /Black=0.61} (49. bxc8=B f1=Q 50. Bxg4 Qf4+ 51. Kd5 (51. Kc6 Qc4+ 52. Kd6 Qf4+ 53. Kd5 Qxc7 $16) 51... Qxc7 $16) 1-0